lending/lending_fUSD_20251106
["ID","MTS","AMOUNT","RATE_DAILY","PERIOD"]
[393278801,1762422642757,-720.96,0.00017999,2]
[393278802,1762422642766,-720.96,0.00017999,2]
[393278803,1762422642775,-720.96,0.00017999,2]
[393278804,1762422642785,-720.96,0.00017999,2]
[393278805,1762422642794,-720.96,0.00017999,2]
[393278806,1762422642804,-720.96,0.00017999,2]
[393278807,1762422642814,-720.96,0.00017999,2]
[393278808,1762422642823,-720.96,0.00017999,2]
[393278809,1762422642833,-720.96,0.00017999,2]
[393278810,1762422642843,-720.96,0.00017999,2]
[393278811,1762422642852,-720.96,0.00017999,2]
[393278812,1762422642861,-720.96,0.00017999,2]
[393278813,1762422642871,-720.96,0.00017999,2]
[393278814,1762422642880,-720.96,0.00017999,2]
[393278815,1762422642891,-720.96,0.00017999,2]
[393278816,1762422642901,-720.96,0.00017999,2]
[393278817,1762422642910,-720.96,0.00017999,2]
[393278818,1762422642920,-720.96,0.00017999,2]
[393278819,1762422642931,-720.96,0.00017999,2]
[393278820,1762422642940,-721.09879056,0.00017999,2]
[393278821,1762422642950,-500.0,0.00017999,2]
[393278822,1762422642961,-500.0,0.00017999,2]
[393278823,1762422642970,-517.47400377,0.00017999,2]
[393278824,1762422642980,-181.51553002,0.00017999,2]
[393278825,1762422642989,-666.0,0.00017999,2]
[393278826,1762422642999,-500.0,0.00017999,2]
[393278827,1762422643010,-500.0,0.00017999,2]
[393278828,1762422643020,-509.6544265,0.00017999,2]
[393278829,1762422643030,-888.97,0.00017999,2]
[393278830,1762422643040,-888.97,0.00017999,2]
[393278831,1762422643050,-888.97,0.00017999,2]
[393278832,1762422643061,-888.97,0.00017999,2]
[393278833,1762422643071,-888.97,0.00017999,2]
[393278834,1762422643081,-888.97,0.00017999,2]
[393278835,1762422643091,-888.97,0.00017999,2]
[393278836,1762422643100,-888.97,0.00017999,2]
[393278837,1762422643111,-888.97,0.00017999,2]
[393278838,1762422643124,-888.97,0.00017999,2]
[393278839,1762422643134,-888.97,0.00017999,2]
[393278840,1762422643144,-888.97,0.00017999,2]
[393278841,1762422643154,-888.97,0.00017999,2]
[393278842,1762422643164,-888.97,0.00017999,2]
[393278843,1762422643174,-888.97,0.00017999,2]
[393278844,1762422643183,-888.97,0.00017999,2]
[393278845,1762422643193,-888.97,0.00017999,2]
[393278846,1762422643203,-888.97,0.00017999,2]
[393278848,1762422643218,-888.97,0.00017999,2]
[393278850,1762422643231,-888.97,0.00017999,2]
[393278852,1762422643245,-888.97,0.00017999,2]
[393278853,1762422643256,-888.97,0.00017999,2]
[393278854,1762422643268,-888.97,0.00017999,2]
[393278855,1762422643278,-889.0582264,0.00017999,2]
[393278856,1762422643290,-500.0,0.00017999,2]
[393278857,1762422643302,-602.23460936,0.00017999,2]
[393278858,1762422643314,-522.56,0.00017999,2]
[393278859,1762422643325,-522.56,0.00017999,2]
[393278860,1762422643337,-522.56,0.00017999,2]
[393278861,1762422643348,-522.56,0.00017999,2]
[393278862,1762422643360,-522.56,0.00017999,2]
[393278863,1762422643373,-522.56,0.00017999,2]
[393278864,1762422643384,-522.56,0.00017999,2]
[393278865,1762422643395,-522.56,0.00017999,2]
[393278866,1762422643405,-522.56,0.00017999,2]
[393278867,1762422643415,-522.56,0.00017999,2]
[393278868,1762422643427,-522.56,0.00017999,2]
[393278869,1762422643438,-522.56,0.00017999,2]
[393278870,1762422643450,-522.56,0.00017999,2]
[393278871,1762422643463,-522.56,0.00017999,2]
[393278872,1762422643474,-522.56,0.00017999,2]
[393278873,1762422643486,-522.56,0.00017999,2]
[393278874,1762422643499,-522.56,0.00017999,2]
[393278875,1762422643511,-522.56,0.00017999,2]
[393278876,1762422643527,-522.56,0.00017999,2]
[393278877,1762422643538,-522.56,0.00017999,2]
[393278878,1762422643551,-522.56,0.00017999,2]
[393278879,1762422643564,-522.56,0.00017999,2]
[393278880,1762422643577,-522.56,0.00017999,2]
[393278881,1762422643589,-522.74569463,0.00017999,2]
[393278882,1762422643602,-300.0,0.00017999,2]
[393278883,1762422643614,-666.0,0.00017999,2]
[393278884,1762422643626,-160.49083682,0.00017999,2]
[393278885,1762422643638,-1494262.95329529,0.00018,2]
[393278886,1762422643902,-664.98932389,0.00018,2]
[393278887,1762422643919,-14741.47358182,0.00018,2]
[393278888,1762422644078,-500.0,0.00016173,2]
[393278889,1762422644089,-150.0,0.00016173,2]
[393278890,1762422644100,-500.0,0.0001631,2]
[393278891,1762422644111,-506.64145389,0.00016447,2]
[393278892,1762422644122,-14904.85854611,0.00018,2]
[393278893,1762422644145,-839.15,0.00018,2]
[393278894,1762422644159,-4156.19990002,0.00018,2]
[393278895,1762422644171,-15999.50205789,0.00018,2]
[393278896,1762422644198,-1868.12666535,0.00018,2]
[393278897,1762422644211,-806.52,0.00018,2]
[393278898,1762422644224,-3119.0,0.00018,2]
[393278900,1762422646109,-250.0,0.00017,2]
[393278901,1762422646119,-281.02619732,0.00017124,2]
[393278902,1762422646128,-201.51209387,0.00017397,2]
[393278903,1762422646147,-559.57400002,0.00017397,2]
[393278905,1762422746067,135.22172999,0.00013699,2]
[393278906,1762422746091,864.77827001,0.00013699,2]
[393278908,1762423124863,-278.72,0.00026182,120]
[393278909,1762423124924,-500.0,0.00026899,120]
[393278910,1762423125005,-500.0,0.00028899,120]
[393280682,1762423203529,-95357.11840602,0.00038683,60]
[393280685,1762423203600,-500.0,0.00038683,120]
[393280687,1762423203666,-503.71977376,0.00038683,120]
[393280690,1762423203733,-176001.61,0.00038683,45]
[393280693,1762423203798,-500.0,0.00038683,120]
[393280696,1762423203863,-500.0,0.00038683,120]
[393280699,1762423203930,-500.0,0.00038683,120]
[393280701,1762423203996,-500.0,0.00038683,120]
[393280704,1762423204065,-500.0,0.00038683,120]
[393280707,1762423204131,-500.0,0.00038683,120]
[393280710,1762423204202,-500.0,0.00038683,120]
[393280713,1762423204274,-500.0,0.00038683,120]
[393280716,1762423204345,-500.0,0.00038683,120]
[393280719,1762423204415,-500.0,0.00038683,120]
[393280722,1762423204485,-518.2029169,0.00038683,120]
[393280725,1762423204553,-19027.63222992,0.00038683,30]
[393280728,1762423204620,-4830.08677676,0.00038683,30]
[393280730,1762423204689,-6260.15766842,0.00038683,30]
[393280733,1762423204758,-104418.51997633,0.00038683,30]
[393280736,1762423204829,-29815.97309145,0.00038683,30]
[393280737,1762423204900,-12500.87,0.00038683,120]
[393280740,1762423204969,-12500.87,0.00038683,120]
[393280743,1762423205040,-12500.87,0.00038683,120]
[393280745,1762423205112,-12500.87,0.00038683,120]
[393280748,1762423205188,-12500.87,0.00038683,120]
[393280751,1762423205258,-12500.87,0.00038683,120]
[393280754,1762423205328,-12500.87,0.00038683,120]
[393280757,1762423205397,-12500.87,0.00038683,120]
[393280760,1762423205465,-12500.87,0.00038683,120]
[393280762,1762423205538,-12500.87,0.00038683,120]
[393280765,1762423205609,-12500.87,0.00038683,120]
[393280768,1762423205680,-12500.87,0.00038683,120]
[393280771,1762423205753,-12500.87,0.00038683,120]
[393280774,1762423205823,-12500.87,0.00038683,120]
[393280777,1762423205891,-12500.87,0.00038683,120]
[393280780,1762423205958,-12500.87,0.00038683,120]
[393280783,1762423206028,-12500.87,0.00038683,120]
[393280786,1762423206095,-12500.87,0.00038683,120]
[393280789,1762423206162,-12500.87,0.00038683,120]
[393280792,1762423206230,-12500.87,0.00038683,120]
[393280795,1762423206296,-12500.87,0.00038683,120]
[393280798,1762423206363,-12500.87,0.00038683,120]
[393280800,1762423206439,-12500.87,0.00038683,120]
[393280802,1762423206506,-12500.95439646,0.00038683,120]
[393280805,1762423206571,-3005.34378567,0.00038683,120]
[393280808,1762423206636,-500.95681029,0.00038683,120]
[393280811,1762423206707,-300.0,0.00038683,120]
[393280814,1762423206772,-609.11332378,0.00038683,120]
[393280817,1762423206837,-156.02,0.00038683,120]
[393280819,1762423206903,-614.305601,0.00038683,120]
[393280823,1762423206970,-310.063236,0.00038683,120]
[393280825,1762423207038,-156.242591,0.00038683,120]
[393280828,1762423207105,-6950.797515,0.00038683,120]
[393280832,1762423207176,-2055.118676,0.00038683,120]
[393280834,1762423207244,-6145.201404,0.00038683,120]
[393280837,1762423207311,-150.0,0.00038683,90]
[393280840,1762423207377,-150.0,0.00038683,90]
[393280843,1762423207448,-150.0,0.00038683,90]
[393280846,1762423207512,-150.0,0.00038683,90]
[393280849,1762423207578,-500.0,0.00038683,30]
[393280852,1762423207656,-500.0,0.00038683,30]
[393280855,1762423207723,-607.59301092,0.00038683,30]
[393281868,1762423261986,166.66,0.00014439,2]
[393281869,1762423262178,166.66,0.00014743,2]
[393281870,1762423262379,166.66,0.00015047,2]
[393281872,1762423329227,151.0,0.00038683,120]
[393281873,1762423329865,151.0,0.00038683,120]
[393281874,1762423330470,151.0,0.00038683,120]
[393281875,1762423331070,151.0,0.00038683,120]
[393281876,1762423331668,151.0,0.00038683,120]
[393281877,1762423331883,277.35679052,0.00038683,60]
[393281878,1762423332386,151.0,0.00038683,120]
[393281879,1762423332946,151.0,0.00038683,120]
[393281880,1762423343546,2751.0,0.00015089,2]
[393281881,1762423401638,500.0,0.00026395,120]
[393281882,1762423402008,500.0,0.00028647,120]
[393281883,1762423406205,303.56780722,0.0003873,120]
[393281903,1762423560389,151.0,0.00015089,2]
[393281904,1762423560949,167.1213413,0.00015089,2]
[393281905,1762423561824,151.0,0.00015089,2]
[393281906,1762423562906,183.24268259,0.00015089,2]
[393281908,1762423591327,250.0,0.00015025,2]
[393281909,1762423608064,1852.42,0.00015002,2]
[393281910,1762423624519,300.0,0.000156,5]
[393281911,1762423626589,600.0,0.000157,5]
[393281912,1762423628685,900.0,0.000158,5]
[393281913,1762423630780,1200.0,0.000159,5]
[393281914,1762423657073,7897.59,0.00014994,2]
[393281915,1762423657095,10000.01,0.00014994,2]
[393281916,1762423657386,5028.76,0.00014994,2]
[393281920,1762423749120,999.0,0.00014969,3]
[393281922,1762423831864,-1591.73,0.00015146,2]
[393281923,1762423831875,-195.0,0.00015171,2]
[393281924,1762423831886,-250.0,0.00015196,2]
[393281925,1762423831897,-250.0,0.00015227,2]
[393281926,1762423831908,-671.0,0.00015246,2]
[393281927,1762423831919,-300.0,0.00015246,2]
[393281928,1762423831929,-300.0,0.00015246,2]
[393281929,1762423831940,-300.0,0.00015247,2]
[393281930,1762423831951,-300.0,0.00015247,2]
[393281931,1762423831962,-1200.0,0.00015247,2]
[393281932,1762423831973,-835.09,0.00015248,2]
[393281933,1762423831984,-500.0,0.00015248,2]
[393281934,1762423831994,-500.0,0.00015248,2]
[393281935,1762423832005,-500.0,0.00015248,2]
[393281936,1762423832015,-500.0,0.00015248,2]
[393281937,1762423832030,-500.0,0.00015248,2]
[393281938,1762423832042,-500.0,0.00015248,2]
[393281939,1762423832053,-500.0,0.00015248,2]
[393281940,1762423832064,-500.0,0.00015248,2]
[393281941,1762423832075,-500.0,0.00015248,2]
[393281942,1762423832086,-500.0,0.00015248,2]
[393281943,1762423832096,-500.0,0.00015248,2]
[393281944,1762423832108,-500.0,0.00015248,2]
[393281945,1762423832119,-500.0,0.00015248,2]
[393281946,1762423832130,-500.0,0.00015248,2]
[393281947,1762423832141,-500.0,0.00015248,2]
[393281948,1762423832156,-500.0,0.00015248,2]
[393281949,1762423832171,-500.0,0.00015248,2]
[393281950,1762423832187,-500.0,0.00015248,2]
[393281951,1762423832200,-500.0,0.00015248,2]
[393281952,1762423832213,-684.82,0.00015248,2]
[393281953,1762423832226,-150.0,0.00015257,2]
[393281954,1762423832239,-166.66,0.00015351,2]
[393281955,1762423832253,-684.82,0.00015522,2]
[393281956,1762423832269,-166.66,0.00015655,2]
[393281957,1762423832284,-244.53,0.00015706,2]
[393281958,1762423832298,-200.0,0.00015748,2]
[393281959,1762423832325,-684.82,0.00015796,2]
[393281960,1762423832340,-9999.99,0.00015796,2]
[393281961,1762423832355,-150.99,0.00015796,2]
[393281962,1762423832373,-508.61,0.00015796,2]
[393281963,1762423832387,-1816.58,0.00015796,2]
[393281964,1762423832401,-4804.61,0.00015796,2]
[393281965,1762423832415,-43249.45,0.00015796,2]
[393281966,1762423832430,-9999.99,0.00015796,2]
[393281967,1762423832443,-150.99,0.00015796,2]
[393281968,1762423832458,-9999.99,0.00015796,2]
[393281969,1762423832475,-421.24,0.00015796,2]
[393281970,1762423832489,-407.92,0.00015796,2]
[393281971,1762423832502,-9999.99,0.00015796,2]
[393281972,1762423832515,-999.99,0.00015796,2]
[393281973,1762423832528,-9999.99,0.00015796,2]
[393281974,1762423832542,-1427.23,0.00015796,2]
[393281975,1762423832552,-151.0,0.00015891,2]
[393281976,1762423832563,-151.0,0.00015891,2]
[393281977,1762423832576,-151.0,0.00015891,2]
[393281978,1762423832589,-151.0,0.00015891,2]
[393281979,1762423832602,-151.0,0.00015891,2]
[393281980,1762423832614,-151.0,0.00015891,2]
[393281981,1762423832627,-151.0,0.00015891,2]
[393281982,1762423832639,-151.0,0.00015891,2]
[393281983,1762423832653,-151.0,0.00015891,2]
[393281984,1762423832666,-151.0,0.00015891,2]
[393281985,1762423832679,-151.0,0.00015891,2]
[393281986,1762423832691,-151.0,0.00015891,2]
[393281987,1762423832703,-151.0,0.00015891,2]
[393281988,1762423832716,-151.0,0.00015891,2]
[393281989,1762423832727,-151.0,0.00015891,2]
[393281990,1762423832738,-151.0,0.00015891,2]
[393281991,1762423832749,-151.0,0.00015891,2]
[393281992,1762423832760,-151.0,0.00015891,2]
[393281993,1762423832771,-151.0,0.00015891,2]
[393281994,1762423832783,-151.0,0.00015891,2]
[393281995,1762423832793,-288.21982376,0.00015891,2]
[393281996,1762423832817,-151.0,0.00015891,2]
[393281997,1762423832828,-151.0,0.00015891,2]
[393281998,1762423832838,-151.0,0.00015891,2]
[393281999,1762423832849,-151.0,0.00015891,2]
[393282000,1762423832860,-151.0,0.00015891,2]
[393282001,1762423832871,-151.0,0.00015891,2]
[393282002,1762423832883,-151.0,0.00015891,2]
[393282003,1762423832894,-151.0,0.00015891,2]
[393282004,1762423832905,-224.86764211,0.000159,2]
[393282005,1762423832918,-5000.0,0.000159,2]
[393282006,1762423832928,-526.5791,0.000159,2]
[393282007,1762423832939,-9525.45,0.00015901,2]
[393282008,1762423832951,-166.66,0.00015959,2]
[393282009,1762423832962,-496.62240648,0.00015972,2]
[393282010,1762423832973,-500.0,0.00015973,2]
[393282011,1762423832984,-500.0,0.00015973,2]
[393282012,1762423832996,-500.0,0.00015973,2]
[393282013,1762423833007,-164.38222559,0.00015973,2]
[393282014,1762423833020,-500.0,0.00015973,2]
[393282015,1762423833036,-500.0,0.00015973,2]
[393282016,1762423833047,-500.0,0.00015973,2]
[393282017,1762423833059,-501.59027207,0.00015973,2]
[393282018,1762423833072,-500.0,0.00015973,2]
[393282019,1762423833083,-500.0,0.00015973,2]
[393282020,1762423833094,-351.83614061,0.00015973,2]
[393282021,1762423833106,-1229.51174083,0.00015973,2]
[393282022,1762423833117,-280.89816544,0.00015973,2]
[393282023,1762423833128,-540.74052707,0.0001599,2]
[393282024,1762423833140,-470.922,0.0001599,2]
[393282025,1762423833150,-3727.6985,0.0001599,2]
[393282026,1762423833162,-151.0,0.00015997,2]
[393282027,1762423833174,-4843.58916895,0.00015999,2]
[393282028,1762423833186,-176.193,0.00015999,2]
[393282029,1762423833196,-3195.714,0.00015999,2]
[393282030,1762423833206,-937.2,0.00015999,2]
[393282031,1762423833216,-937.2,0.00015999,2]
[393282032,1762423833225,-937.2,0.00015999,2]
[393282033,1762423833235,-937.2,0.00015999,2]
[393282034,1762423833245,-937.2,0.00015999,2]
[393282035,1762423833255,-937.2,0.00015999,2]
[393282036,1762423833265,-937.2,0.00015999,2]
[393282037,1762423833566,-937.2,0.00015999,2]
[393282038,1762423833581,-500.0,0.00015999,2]
[393282039,1762423833592,-417.15136733,0.00015999,2]
[393282040,1762423833601,-500.0,0.00015999,2]
[393282041,1762423833611,-500.0,0.00015999,2]
[393282042,1762423833620,-500.0,0.00015999,2]
[393282043,1762423833630,-500.0,0.00015999,2]
[393282044,1762423833639,-500.0,0.00015999,2]
[393282045,1762423833648,-500.0,0.00015999,2]
[393282046,1762423833657,-500.0,0.00015999,2]
[393282047,1762423833666,-500.0,0.00015999,2]
[393282048,1762423833675,-522.56,0.00015999,2]
[393282049,1762423833685,-522.56,0.00015999,2]
[393282050,1762423833694,-522.56,0.00015999,2]
[393282051,1762423833703,-522.56,0.00015999,2]
[393282052,1762423833712,-522.56,0.00015999,2]
[393282053,1762423833721,-522.56,0.00015999,2]
[393282054,1762423833731,-522.56,0.00015999,2]
[393282055,1762423833740,-522.56,0.00015999,2]
[393282056,1762423833751,-522.56,0.00015999,2]
[393282057,1762423833760,-500.0,0.00015999,2]
[393282058,1762423833769,-500.0,0.00015999,2]
[393282059,1762423833778,-500.0,0.00015999,2]
[393282060,1762423833787,-500.0,0.00015999,2]
[393282061,1762423833796,-500.0,0.00015999,2]
[393282062,1762423833809,-209.3174759,0.00015999,2]
[393282063,1762423833818,-191.30655897,0.00015999,2]
[393282064,1762423833827,-30989.59855123,0.00016,2]
[393282065,1762423833840,-24241.13350905,0.00016,2]
[393282066,1762423833850,-508.42869834,0.00016,2]
[393282067,1762423833869,-1986.03961076,0.00016,2]
[393282076,1762423837720,-1942274.79963062,0.00016,2]
[393282077,1762423837730,-684.82,0.0001607,2]
[393282078,1762423837739,-500.0,0.00016073,2]
[393282079,1762423837749,-500.0,0.00016073,2]
[393282080,1762423837758,-500.0,0.00016073,2]
[393282081,1762423837767,-160.01934734,0.00016073,2]
[393282082,1762423837776,-500.0,0.00016073,2]
[393282083,1762423837786,-621.31673857,0.00016073,2]
[393282084,1762423837795,-500.0,0.00016073,2]
[393282085,1762423837805,-500.0,0.00016073,2]
[393282086,1762423837815,-500.0,0.00016073,2]
[393282087,1762423837823,-500.0,0.00016073,2]
[393282088,1762423837832,-349.30178506,0.00016073,2]
[393282089,1762423837841,-500.0,0.00016073,2]
[393282090,1762423837850,-500.90089396,0.00016073,2]
[393282091,1762423837860,-500.0,0.00016073,2]
[393282092,1762423837870,-500.0,0.00016073,2]
[393282093,1762423837879,-500.0,0.00016073,2]
[393282094,1762423837888,-500.0,0.00016073,2]
[393282095,1762423837897,-500.0,0.00016073,2]
[393282096,1762423837907,-500.0,0.00016073,2]
[393282097,1762423837917,-500.0,0.00016073,2]
[393282098,1762423837926,-504.69553816,0.00016073,2]
[393282099,1762423837936,-500.0,0.00016073,2]
[393282100,1762423837945,-500.0,0.00016073,2]
[393282101,1762423837955,-500.0,0.00016073,2]
[393282102,1762423837964,-151.0,0.00016087,2]
[393282103,1762423837974,-937.2,0.00016089,2]
[393282104,1762423837983,-937.2,0.00016089,2]
[393282106,1762423837993,-500.0,0.00016089,2]
[393282108,1762423838003,-500.0,0.00016089,2]
[393282110,1762423838012,-522.56,0.00016089,2]
[393282112,1762423838022,-522.56,0.00016089,2]
[393282114,1762423838037,-33260.0507,0.0001609,2]
[393282117,1762423838058,-420000.0,0.0001609,2]
[393282119,1762423838070,-1000.0,0.0001609,2]
[393282121,1762423838080,-7480.64,0.00016116,2]
[393282122,1762423838090,-351.83614059,0.00016187,2]
[393282124,1762423838101,-280.89816539,0.00016248,2]
[393282125,1762423838112,-496.62240648,0.00016293,2]
[393282127,1762423838122,-49210.17169197,0.00016322,2]
[393282129,1762423838132,-684.82,0.00016344,2]
[393282131,1762423838143,-510.0,0.00016375,2]
[393282133,1762423838152,-351.83614059,0.00016401,2]
[393282135,1762423838163,-500.0,0.00016438,2]
[393282136,1762423838173,-500.0,0.00016438,2]
[393282138,1762423838183,-500.0,0.00016438,2]
[393282140,1762423838194,-500.0,0.00016438,2]
[393282142,1762423838204,-500.0,0.00016438,2]
[393282145,1762423838214,-500.0,0.00016438,2]
[393282146,1762423838224,-344.69551285,0.00016438,2]
[393282149,1762423838235,-501.13567703,0.00016438,2]
[393282151,1762423838245,-152.54268606,0.00016447,2]
[393282153,1762423838255,-152.00625849,0.00016447,2]
[393282155,1762423838265,-150.0,0.00016447,2]
[393282157,1762423838275,-202.37031601,0.00016447,2]
[393282159,1762423838285,-150.0,0.00016447,2]
[393282161,1762423838294,-150.0,0.00016447,2]
[393282163,1762423838305,-150.0,0.00016447,2]
[393282165,1762423838315,-150.0,0.00016447,2]
[393282167,1762423838325,-152.08698658,0.00016447,2]
[393282169,1762423838334,-500.0,0.00016447,2]
[393282171,1762423838344,-150.0,0.00016447,2]
[393282173,1762423838353,-599.0,0.00016447,2]
[393282175,1762423838363,-500.0,0.00016447,2]
[393282177,1762423838373,-150.0,0.00016447,2]
[393282179,1762423838383,-500.0,0.00016447,2]
[393282181,1762423838392,-500.0,0.00016447,2]
[393282183,1762423838401,-500.0,0.00016447,2]
[393282185,1762423838412,-500.0,0.00016447,2]
[393282187,1762423838421,-150.0,0.00016447,2]
[393282189,1762423838430,-500.0,0.00016447,2]
[393282191,1762423838440,-500.0,0.00016447,2]
[393282193,1762423838450,-500.0,0.00016447,2]
[393282195,1762423838459,-500.0,0.00016447,2]
[393282197,1762423838469,-408.3599179,0.00016447,2]
[393282199,1762423838479,-150.0,0.00016447,2]
[393282201,1762423838488,-154.15552868,0.00016447,2]
[393282203,1762423838497,-500.0,0.00016447,2]
[393282205,1762423838506,-300.0,0.00016447,2]
[393282207,1762423838516,-500.0,0.00016447,2]
[393282209,1762423838526,-150.0,0.00016447,2]
[393282211,1762423838535,-150.0,0.00016447,2]
[393282213,1762423838545,-500.0,0.00016447,2]
[393282215,1762423838557,-150.0,0.00016447,2]
[393282217,1762423838567,-500.0,0.00016447,2]
[393282219,1762423838576,-500.0,0.00016447,2]
[393282221,1762423838586,-150.0,0.00016481,2]
[393282223,1762423838596,-1127.93010433,0.00016521,2]
[393282226,1762423838611,-782.33179847,0.00016521,2]
[393282228,1762423838621,-1000.0,0.00016521,2]
[393282230,1762423838631,-1000.0,0.00016521,2]
[393282232,1762423838641,-182.8775756,0.00016521,2]
[393282234,1762423838651,-1000.0,0.00016521,2]
[393282236,1762423838661,-1000.0,0.00016521,2]
[393282238,1762423838670,-290.90535112,0.00016521,2]
[393282240,1762423838680,-280.89816539,0.00016524,2]
[393282242,1762423838690,-444.35,0.00016575,2]
[393282244,1762423838700,-5168.0,0.0001658,2]
[393282246,1762423838709,-150.0,0.00016584,2]
[393282248,1762423838720,-150.0,0.00016584,2]
[393282251,1762423838729,-150.0,0.00016584,2]
[393282253,1762423838739,-150.0,0.00016584,2]
[393282255,1762423838750,-500.0,0.00016584,2]
[393282257,1762423838760,-150.0,0.00016584,2]
[393282259,1762423838770,-599.0,0.00016584,2]
[393282261,1762423838779,-516.33548393,0.00016584,2]
[393282263,1762423838789,-150.0,0.00016584,2]
[393282265,1762423838799,-500.0,0.00016584,2]
[393282267,1762423838809,-500.0,0.00016584,2]
[393282269,1762423838819,-500.0,0.00016584,2]
[393282271,1762423838829,-505.03214734,0.00016584,2]
[393282272,1762423838840,-150.0,0.00016584,2]
[393282273,1762423838850,-150.0,0.00016584,2]
[393282274,1762423838860,-500.0,0.00016584,2]
[393282275,1762423838870,-300.0,0.00016584,2]
[393282276,1762423838880,-500.0,0.00016584,2]
[393282277,1762423838890,-150.0,0.00016584,2]
[393282278,1762423838900,-500.0,0.00016584,2]
[393282279,1762423838910,-500.0,0.00016584,2]
[393282280,1762423838921,-500.0,0.00016584,2]
[393282281,1762423838932,-496.62240648,0.00016615,2]
[393282282,1762423838942,-351.83614059,0.00016615,2]
[393282284,1762423838954,-684.82,0.00016618,2]
[393282286,1762423838964,-1020.11501514,0.00016621,2]
[393282288,1762423838974,-1016.7694007,0.00016621,2]
[393282290,1762423838983,-502.73555537,0.00016621,2]
[393282292,1762423838993,-1000.0,0.00016621,2]
[393282294,1762423839003,-1000.0,0.00016621,2]
[393282297,1762423839013,-1025.42297104,0.00016621,2]
[393282299,1762423839027,-1000.0,0.00016621,2]
[393282301,1762423839038,-1000.0,0.00016621,2]
[393282303,1762423839048,-1000.0,0.00016621,2]
[393282305,1762423839059,-500.0,0.00016621,2]
[393282307,1762423839070,-983.00459956,0.00016621,2]
[393282309,1762423839080,-1000.0,0.00016621,2]
[393282311,1762423839090,-1000.0,0.00016621,2]
[393282313,1762423839099,-1000.0,0.00016621,2]
[393282315,1762423839110,-1000.0,0.00016621,2]
[393282317,1762423839120,-352.20603691,0.00016621,2]
[393282318,1762423839129,-1000.70281537,0.00016621,2]
[393282321,1762423839139,-578.06406639,0.00016621,2]
[393282323,1762423839149,-300.0,0.0001666,2]
[393282325,1762423839162,-300.0,0.0001666,2]
[393282327,1762423839173,-300.0,0.0001666,2]
[393282329,1762423839183,-300.0,0.0001666,2]
[393282331,1762423839193,-300.0,0.0001666,2]
[393282333,1762423839203,-323.34285068,0.0001666,2]
[393282335,1762423839214,-250.0,0.0001666,2]
[393282337,1762423839225,-300.0,0.0001666,2]
[393282339,1762423839236,-195.0,0.0001666,2]
[393282341,1762423839246,-420.0,0.00016682,2]
[393282343,1762423839256,-420.0,0.00016682,2]
[393282345,1762423839265,-180.85,0.00016712,2]
[393282347,1762423839275,-150.0,0.00016721,2]
[393282349,1762423839285,-150.0,0.00016721,2]
[393282350,1762423839295,-150.0,0.00016721,2]
[393282351,1762423839305,-150.0,0.00016721,2]
[393282352,1762423839315,-500.0,0.00016721,2]